bitfinex-derivatives/quotes_BTCF0:USTF0_20240902
["timestamp","ask_amount","ask_price","bid_price","bid_amount"]
[1725318037658,0.3608,59428.0,59426.0,0.16]
[1725318038362,0.3558,59428.0,59426.0,0.16]
[1725318038949,0.3558,59428.0,59426.0,0.002]
[1725318039154,0.3558,59428.0,59426.0,0.168]
[1725318040054,0.3558,59428.0,59426.0,0.012]
[1725318040556,0.3608,59429.0,59426.0,0.012]
[1725318040761,0.00212076,59431.0,59428.0,0.0008]
[1725318040964,0.00212076,59431.0,59430.0,0.1608]
[1725318041257,0.0045,59445.0,59441.0,0.067296]
[1725318041462,0.43235437,59450.0,59441.0,0.5216]
[1725318041758,0.43339438,59450.0,59441.0,0.3616]
[1725318041957,0.3608,59445.0,59441.0,0.0008]
[1725318042359,0.3608,59445.0,59441.0,0.0098]
[1725318042563,0.3608,59444.0,59441.0,0.0098]
[1725318042860,0.3608,59444.0,59441.0,0.0118]
[1725318043449,0.3608,59444.0,59441.0,0.0098]
[1725318043858,0.0205,59447.0,59442.0,0.16]
[1725318044065,0.0205,59447.0,59446.0,0.588891]
[1725318044268,0.0205,59447.0,59446.0,0.228091]
[1725318044661,0.0205,59447.0,59446.0,0.348091]
[1725318044855,0.3813,59447.0,59446.0,0.0008]
[1725318045256,0.3813,59447.0,59446.0,0.1208]
[1725318045453,0.3813,59447.0,59446.0,0.2838]
[1725318045763,0.3813,59447.0,59446.0,0.0038]
[1725318046758,0.7421,59447.0,59446.0,0.0038]
[1725318046956,0.7451,59447.0,59446.0,0.0038]
[1725318048259,0.7451,59447.0,59446.0,0.0008]
[1725318049164,0.81239,59447.0,59446.0,0.0008]
[1725318049365,0.81339,59447.0,59446.0,0.0008]
[1725318049864,0.80939,59447.0,59446.0,0.0008]
[1725318050069,0.80939,59447.0,59446.0,0.0018]
[1725318050070,0.81339,59447.0,59446.0,0.0018]
[1725318051574,0.09179,59447.0,59446.0,0.0018]
[1725318051868,0.004,59447.0,59446.0,0.1918]
[1725318052071,0.02505866,59450.0,59449.0,0.067287]
[1725318052263,0.02505866,59450.0,59449.0,0.068087]
[1725318052865,0.02505866,59450.0,59449.0,1.172727]
[1725318053066,0.02505866,59450.0,59449.0,0.572727]
[1725318053272,0.02505866,59450.0,59449.0,1.533527]
[1725318053572,0.02505866,59450.0,59449.0,0.933527]
[1725318053771,0.02505866,59450.0,59449.0,1.533527]
[1725318054576,0.3608,59460.0,59454.0,0.067281]
[1725318054766,0.3608,59460.0,59459.0,0.1908]
[1725318055170,0.3608,59460.0,59459.0,0.258076]
[1725318055977,0.3608,59460.0,59459.0,0.0008]
[1725318056168,0.428075,59460.0,59459.0,0.0018]
[1725318057276,0.3608,59460.0,59459.0,0.069076]
[1725318057576,0.3608,59460.0,59459.0,0.070076]
[1725318058177,0.3608,59460.0,59459.0,0.0028]
[1725318058977,0.428075,59460.0,59459.0,0.0028]
[1725318060980,0.067277,59458.0,59457.0,0.04974574]
[1725318061180,0.3608,59459.0,59453.0,0.0666348]
[1725318061380,0.3608,59459.0,59457.0,0.19]
[1725318061680,0.31872606,59459.0,59457.0,0.19]
[1725318062198,0.31872606,59459.0,59457.0,0.191]
[1725318062387,0.067278,59458.0,59457.0,0.24074574]
[1725318062585,0.067278,59458.0,59457.0,0.05074574]
[1725318062798,0.067278,59458.0,59457.0,0.001]
[1725318063296,0.067278,59458.0,59457.0,0.05074574]
[1725318063589,0.067278,59458.0,59457.0,0.002]
[1725318063780,0.067278,59458.0,59457.0,0.06805394]
[1725318063980,0.67952606,59459.0,59456.0,0.06605731]
[1725318063981,0.067278,59457.0,59456.0,0.06605731]
[1725318064185,0.74780206,59459.0,59454.0,0.06605731]
[1725318064383,0.428078,59457.0,59456.0,0.04955235]
[1725318064588,0.067282,59454.0,59453.0,0.06605731]
[1725318064792,0.134566,59453.0,59452.0,0.06605731]
[1725318064986,0.134566,59453.0,59449.0,0.00025232]
[1725318064987,0.134568,59452.0,59451.0,0.06605731]
[1725318065186,0.134568,59452.0,59450.0,0.06605731]
[1725318065187,0.066285,59451.0,59450.0,0.06605731]
[1725318065783,0.63821,59451.0,59450.0,0.06605731]
[1725318065990,0.63721,59451.0,59450.0,0.06605731]
[1725318066493,0.63621,59451.0,59450.0,0.06605731]
[1725318067385,0.067286,59450.0,59449.0,0.00025232]
[1725318067585,0.066286,59450.0,59449.0,0.00025232]
[1725318067786,0.570926,59450.0,59449.0,0.00025232]
[1725318067992,0.569926,59450.0,59449.0,0.00025232]
[1725318068190,0.569926,59450.0,59449.0,0.12843571]
[1725318068496,0.568926,59450.0,59449.0,0.12843571]
[1725318068696,0.934726,59450.0,59449.0,0.12943571]
[1725318068892,1.534726,59450.0,59449.0,0.12943571]
[1725318069291,1.534726,59450.0,59449.0,0.00125232]
[1725318069493,1.534726,59450.0,59449.0,0.1294357]
[1725318069804,1.539726,59450.0,59449.0,0.1304357]
[1725318069988,0.01,59450.0,59449.0,0.3577227]
[1725318070298,0.3608,59456.0,59453.0,0.067283]
[1725318070501,0.3608,59456.0,59455.0,0.1604]
[1725318070692,0.3608,59456.0,59455.0,0.44459313]
[1725318070893,0.42808,59456.0,59455.0,0.28459313]
[1725318071093,1.87992,59456.0,59455.0,0.12858338]
[1725318071289,1.05264,59456.0,59455.0,0.22804188]
[1725318071603,1.05964,59456.0,59455.0,0.22804188]
[1725318072104,0.50458578,59456.0,59455.0,0.29535788]
[1725318072405,0.50458578,59456.0,59455.0,0.35386321]
[1725318072406,0.51058578,59456.0,59455.0,0.35386321]
[1725318073289,0.51058578,59456.0,59455.0,0.28658221]
[1725318073502,0.51058578,59456.0,59455.0,0.23007836]
[1725318073897,0.49958578,59456.0,59455.0,0.23007836]
[1725318074498,0.49958578,59456.0,59455.0,0.13058338]
[1725318076300,0.49958578,59456.0,59455.0,0.0024]
[1725318076695,1.23142578,59456.0,59455.0,0.0024]
[1725318076900,1.76414578,59456.0,59455.0,0.05216273]
[1725318077104,1.00414578,59456.0,59455.0,0.05216273]
[1725318077606,1.00414578,59456.0,59455.0,0.05216111]
[1725318077796,1.00414578,59456.0,59455.0,0.0024]
[1725318077996,0.49958578,59456.0,59455.0,0.0024]
[1725318078508,1.00414578,59456.0,59455.0,0.0024]
[1725318078713,0.49958578,59456.0,59455.0,0.0024]
[1725318079005,1.00414578,59456.0,59455.0,0.0024]
[1725318079201,0.49958578,59456.0,59455.0,0.05216111]
[1725318079404,1.00414578,59456.0,59455.0,0.0024]
[1725318079597,1.05464,59456.0,59455.0,0.0024]
[1725318079804,1.36112,59456.0,59455.0,0.0024]
[1725318080005,0.69384,59456.0,59455.0,0.0024]
[1725318080505,0.76112,59456.0,59455.0,0.0024]
[1725318081103,0.69384,59456.0,59455.0,0.0024]
[1725318081401,1.29384,59456.0,59455.0,0.0024]
[1725318081709,1.36112,59456.0,59455.0,0.0024]
[1725318082610,0.76112,59456.0,59455.0,0.0024]
[1725318082812,0.134572,59450.0,59449.0,0.00025232]
[1725318083114,0.94155233,59450.0,59449.0,0.00025232]
[1725318083298,2.04619233,59450.0,59449.0,0.00025232]
[1725318083811,0.605772,59450.0,59449.0,0.00025232]
[1725318084202,0.607772,59450.0,59449.0,0.00125232]
[1725318084398,0.430486,59450.0,59449.0,0.00125232]
[1725318084800,0.430486,59450.0,59449.0,0.06759443]
[1725318085008,0.430486,59450.0,59449.0,0.00125232]
[1725318086110,0.540486,59450.0,59449.0,0.00125232]
[1725318086310,0.657772,59450.0,59449.0,0.05102889]
[1725318086513,0.657772,59450.0,59449.0,0.00125232]
[1725318087316,1.77068274,59450.0,59449.0,0.00125232]
[1725318087707,1.83796874,59450.0,59449.0,0.00125232]
[1725318087907,1.84198989,59450.0,59449.0,0.00125232]
[1725318088316,1.84198989,59450.0,59449.0,3.2e-07]
[1725318089709,1.84198989,59450.0,59444.0,0.00025232]
[1725318089710,0.201876,59445.0,59444.0,6.4e-07]
[1725318089917,0.943076,59445.0,59444.0,6.4e-07]
[1725318090130,2.047756,59445.0,59444.0,6.4e-07]
[1725318090814,0.201903,59437.0,59436.0,6.4e-07]
[1725318091130,0.853103,59437.0,59436.0,6.4e-07]
[1725318091309,1.957863,59437.0,59436.0,6.4e-07]
[1725318092307,1.958863,59437.0,59436.0,6.4e-07]
[1725318092707,1.961863,59437.0,59436.0,6.4e-07]
[1725318092913,0.134614,59432.0,59431.0,0.00025232]
[1725318093123,0.067323,59418.0,59417.0,0.0039]
[1725318093417,0.3608,59419.0,59415.0,0.047]
[1725318093618,0.067725,59416.0,59412.0,0.0205]
[1725318093811,0.3612,59413.0,59412.0,0.0205]
[1725318094011,0.428128,59413.0,59412.0,0.0205]
[1725318094210,0.538128,59413.0,59412.0,0.0205]
[1725318094625,0.524128,59413.0,59412.0,0.0205]
[1725318095311,0.524128,59413.0,59412.0,0.0235]
[1725318096222,0.591456,59413.0,59412.0,0.0235]
[1725318096722,1.763744,59413.0,59412.0,1e-06]
[1725318096919,0.133668,59408.0,59407.0,0.00025232]
[1725318097111,0.067346,59397.0,59396.0,0.0244]
[1725318097425,0.29,59397.0,59382.0,0.0039]
[1725318097620,0.0004,59383.0,59382.0,0.0469]
[1725318098220,0.16,59384.0,59379.0,0.087866]
[1725318098221,0.1594,59384.0,59379.0,0.087866]
[1725318098418,0.1584,59384.0,59379.0,0.087866]
[1725318098720,0.1584,59384.0,59379.0,0.079866]
[1725318099127,0.16,59380.0,59379.0,0.0125]
[1725318099428,0.00025254,59388.0,59379.0,0.0125]
[1725318099619,0.0039,59397.0,59396.0,0.067347]
[1725318099819,0.3608,59405.0,59396.0,0.5208]
[1725318100020,0.3608,59405.0,59399.0,0.19]
[1725318100218,0.3608,59405.0,59396.0,0.3608]
[1725318100413,0.3608,59405.0,59396.0,0.428147]
[1725318100721,0.428137,59405.0,59397.0,0.067346]
[1725318101112,0.19,59402.0,59397.0,0.067346]
[1725318101315,0.3608,59399.0,59395.0,0.00025254]
[1725318101515,0.19,59398.0,59395.0,0.00025254]
[1725318101819,0.3608,59399.0,59395.0,0.00025254]
[1725318102016,0.3608,59399.0,59393.0,0.05360354]
[1725318102226,0.067346,59397.0,59388.0,0.0465]
[1725318102929,0.067346,59397.0,59389.0,0.0458]
[1725318103520,0.5508,59399.0,59387.0,0.36105254]
[1725318104121,0.5508,59399.0,59391.0,0.067353]
[1725318104624,0.5508,59399.0,59387.0,0.36105254]
[1725318104625,0.3608,59405.0,59396.0,0.3608]
[1725318104929,0.067343,59400.0,59394.0,0.06735]
[1725318105125,0.087343,59400.0,59394.0,0.06735]
[1725318105922,0.067344,59399.0,59394.0,0.06735]
[1725318106120,0.087344,59399.0,59394.0,0.06735]
[1725318106515,0.02,59399.0,59394.0,0.06735]
[1725318107824,0.067347,59397.0,59394.0,0.06735]
[1725318108023,0.087347,59397.0,59394.0,0.06735]
[1725318109933,0.02,59397.0,59394.0,0.06735]
[1725318111030,0.087347,59397.0,59394.0,0.06735]
[1725318111629,0.087347,59397.0,59395.0,0.067348]
[1725318112128,0.02,59397.0,59396.0,0.067347]
[1725318113419,0.06735,59394.0,59392.0,0.428151]
[1725318113624,0.06735,59394.0,59387.0,0.36105254]
[1725318113625,0.3608,59393.0,59389.0,0.067355]
[1725318113828,0.067354,59391.0,59389.0,0.067355]
[1725318114025,0.067354,59390.0,59389.0,0.067355]
[1725318114323,0.157354,59390.0,59389.0,0.067355]
[1725318115922,0.09,59390.0,59387.0,0.00025254]
[1725318116320,0.067357,59388.0,59387.0,0.00025254]
[1725318116523,0.558157,59388.0,59387.0,0.00025254]
[1725318119333,0.625514,59388.0,59387.0,0.00025254]
[1725318119538,0.067366,59380.0,59379.0,0.0125]
[1725318119832,0.625532,59380.0,59379.0,0.0125]
[1725318120040,0.785532,59380.0,59379.0,0.0125]
[1725318120224,0.952832,59380.0,59379.0,0.0125]
[1725318120424,2.058072,59380.0,59379.0,0.0125]
[1725318120624,0.134736,59378.0,59377.0,0.04977657]
[1725318120820,0.6208,59378.0,59375.0,0.04977657]
[1725318121033,0.16,59376.0,59375.0,0.04977657]
[1725318121234,0.37,59376.0,59375.0,0.04977657]
[1725318121433,0.134742,59375.0,59374.0,0.00025254]
[1725318121629,0.177371,59375.0,59374.0,0.00025254]
[1725318121835,0.177371,59375.0,59374.0,0.06660769]
[1725318122333,0.177371,59375.0,59374.0,0.00025254]
[1725318122536,0.177371,59375.0,59374.0,0.06677501]
[1725318123327,0.177371,59375.0,59374.0,0.00025254]
[1725318125738,0.244742,59375.0,59374.0,0.00025254]
[1725318126346,0.24868101,59375.0,59374.0,0.00025254]
[1725318126534,0.18131001,59375.0,59374.0,0.00025254]
[1725318126842,0.24868101,59375.0,59374.0,0.00025254]
[1725318127238,0.18131001,59375.0,59374.0,0.00025254]
[1725318127439,0.24868101,59375.0,59374.0,0.00025254]
[1725318128436,0.18131001,59375.0,59374.0,0.00025254]
[1725318129133,0.11,59375.0,59374.0,0.00025254]
[1725318129332,0.11,59375.0,59374.0,0.06672584]
[1725318129533,0.11,59375.0,59374.0,0.00025254]
[1725318129737,0.177371,59375.0,59374.0,0.00025254]
[1725318131436,0.11838255,59375.0,59374.0,0.06673495]
[1725318131637,0.25575355,59375.0,59374.0,0.00025254]
[1725318132540,1.42840455,59375.0,59374.0,0.00025254]
[1725318132840,0.067382,59366.0,59365.0,0.0537714]
[1725318133044,0.7708,59366.0,59364.0,0.0498714]
[1725318133230,0.067384,59364.0,59363.0,0.0703714]
[1725318133452,0.277384,59364.0,59363.0,0.0205]
[1725318133629,1.450128,59364.0,59363.0,0.0205]
[1725318134943,1.45399637,59364.0,59363.0,0.0205]
[1725318135243,0.067389,59359.0,59358.0,0.00016997]
[1725318135433,0.798189,59359.0,59358.0,0.00016997]
[1725318136043,0.698189,59359.0,59358.0,0.00016997]
[1725318136235,0.738189,59359.0,59358.0,0.00016997]
[1725318136941,0.805578,59359.0,59358.0,0.00016997]
[1725318137241,0.805578,59359.0,59358.0,0.05001996]
[1725318137441,0.805578,59359.0,59358.0,0.00016997]
[1725318137742,1.910978,59359.0,59358.0,0.00016997]
[1725318137946,1.750978,59359.0,59358.0,0.00016997]
[1725318138739,1.780978,59359.0,59358.0,0.00016997]
[1725318140741,1.780978,59359.0,59352.0,0.00217997]
[1725318140742,0.067396,59353.0,59352.0,0.00217997]
[1725318140949,0.70669198,59353.0,59352.0,0.00217997]
[1725318141141,1.87952798,59353.0,59352.0,0.00217997]
[1725318141646,1.27952798,59353.0,59352.0,0.00217997]
[1725318142446,1.87952798,59353.0,59352.0,0.00217997]
[1725318142643,1.27952798,59353.0,59352.0,0.00217997]
[1725318142844,1.40952798,59353.0,59352.0,0.00217997]
[1725318145144,0.90408798,59353.0,59352.0,0.00217997]
[1725318145342,0.90797428,59353.0,59352.0,0.00217997]
[1725318145849,1.41341428,59353.0,59352.0,0.00217997]
[1725318146058,1.41341428,59353.0,59341.0,0.0478]
[1725318146059,0.067401,59349.0,59348.0,0.04987411]
[1725318146344,0.067401,59349.0,59346.0,0.04990709]
[1725318146345,0.067402,59348.0,59346.0,0.04990709]
[1725318146546,0.227403,59347.0,59346.0,0.04990709]
[1725318146748,0.067404,59346.0,59343.0,0.04990709]
[1725318146946,0.5208,59344.0,59341.0,0.04990709]
[1725318147149,0.5208,59344.0,59340.0,0.04990709]
[1725318147150,0.06741,59341.0,59340.0,0.04990709]
[1725318147343,0.067411,59340.0,59339.0,0.04990709]
[1725318147546,0.177411,59340.0,59339.0,0.04990709]
[1725318147753,0.067412,59339.0,59338.0,0.04990709]
[1725318147947,0.718212,59339.0,59338.0,0.04990709]
[1725318148142,0.718212,59339.0,59336.0,0.06649881]
[1725318148347,0.067413,59338.0,59337.0,0.04991292]
[1725318148546,0.067413,59338.0,59336.0,0.04991292]
[1725318149052,0.067413,59338.0,59335.0,0.067417]
[1725318149053,0.067413,59338.0,59337.0,0.04991292]
[1725318149245,0.067413,59338.0,59335.0,0.11732992]
[1725318149445,0.5218,59339.0,59335.0,0.11732992]
[1725318149446,0.067415,59337.0,59335.0,0.04991292]
[1725318150346,0.067415,59337.0,59334.0,0.04991292]
[1725318150547,0.16,59335.0,59332.0,0.41071292]
[1725318150748,0.16,59335.0,59329.0,0.06649881]
[1725318150749,0.428219,59333.0,59331.0,0.04991292]
[1725318150958,0.16,59332.0,59331.0,0.04991292]
[1725318151157,0.16,59332.0,59330.0,0.04991292]
[1725318151158,0.28,59332.0,59330.0,0.04991292]
[1725318151344,0.067422,59330.0,59327.0,0.114325]
[1725318151543,0.11,59330.0,59328.0,0.04992617]
[1725318151848,0.11,59330.0,59327.0,0.114325]
[1725318151849,0.11,59330.0,59327.0,0.16425117]
[1725318152048,0.3608,59328.0,59327.0,0.16425117]
[1725318152252,0.4208,59328.0,59327.0,0.16425117]
[1725318152454,0.5808,59328.0,59327.0,0.0469]
[1725318152951,0.648225,59328.0,59327.0,0.0469]
[1725318153348,0.067429,59324.0,59323.0,0.04992617]
[1725318153658,0.227429,59324.0,59322.0,0.04992617]
[1725318154150,0.227429,59324.0,59323.0,0.04992617]
[1725318154350,0.227429,59324.0,59322.0,0.04992617]
[1725318155053,0.06743,59323.0,59322.0,0.04992617]
[1725318155247,0.06743,59323.0,59321.0,0.09812617]
[1725318155444,0.16,59324.0,59321.0,0.09812617]
[1725318155445,0.067431,59322.0,59321.0,0.09812617]
[1725318155649,0.067431,59322.0,59321.0,0.0482]
[1725318155849,0.16,59324.0,59321.0,0.0482]
[1725318156052,0.227429,59324.0,59323.0,0.0004]
[1725318156754,0.347429,59324.0,59323.0,0.0004]
[1725318158551,0.347429,59324.0,59323.0,0.05032617]
[1725318158552,0.187429,59324.0,59323.0,0.05032617]
[1725318158854,0.347429,59324.0,59323.0,0.0004]
[1725318159059,0.347429,59324.0,59323.0,0.05031474]
[1725318159359,0.347429,59324.0,59323.0,0.0004]
[1725318160157,0.347429,59324.0,59323.0,0.06689881]
[1725318161147,0.28,59324.0,59323.0,0.0004]
[1725318161754,1.553149,59324.0,59323.0,0.0004]
[1725318162057,1.553149,59324.0,59320.0,0.06665389]
[1725318162058,0.50572,59323.0,59320.0,0.06665389]
[1725318162262,0.16,59321.0,59318.0,0.06667732]
[1725318162453,0.5208,59319.0,59316.0,0.06667732]
[1725318162651,0.067438,59316.0,59315.0,0.06667732]
[1725318162860,0.347438,59316.0,59312.0,0.067442]
[1725318163154,0.3608,59313.0,59312.0,0.15056552]
[1725318163354,0.4708,59313.0,59312.0,0.067442]
[1725318163558,0.4708,59313.0,59312.0,0.15056552]
[1725318163873,0.4708,59313.0,59312.0,0.067442]
[1725318164252,0.4708,59313.0,59312.0,0.27904411]
[1725318164455,0.4712,59313.0,59312.0,0.15056552]
[1725318164658,0.4712,59313.0,59312.0,0.067442]
[1725318164855,0.0004,59313.0,59312.0,0.19592196]
[1725318165059,0.0004,59313.0,59312.0,1.36916496]
[1725318165259,0.0004,59313.0,59312.0,1.52552517]
[1725318165555,0.16,59324.0,59323.0,0.06743]
[1725318165755,0.16,59324.0,59323.0,0.06783]
[1725318165756,0.22,59324.0,59323.0,0.06783]
[1725318166265,0.22,59324.0,59323.0,0.15114829]
[1725318166664,0.22,59324.0,59323.0,0.06783]
[1725318169857,0.287429,59324.0,59323.0,0.0004]
[1725318171692,0.287429,59324.0,59323.0,0.06715031]
[1725318171883,0.327429,59324.0,59323.0,0.0004]
[1725318173589,1.433149,59324.0,59323.0,0.0004]
[1725318173795,1.861378,59324.0,59323.0,0.0004]
[1725318174383,1.793949,59324.0,59323.0,0.0004]
[1725318174585,1.193949,59324.0,59323.0,0.0004]
[1725318175085,1.793949,59324.0,59323.0,0.0004]
[1725318177106,1.793949,59324.0,59314.0,0.05009111]
[1725318177107,0.06743,59323.0,59314.0,0.05009111]
[1725318177281,0.5212,59315.0,59313.0,0.05009111]
[1725318177486,0.067841,59314.0,59312.0,0.05009111]
[1725318177703,0.0004,59313.0,59312.0,0.05009111]
[1725318177990,0.13,59313.0,59312.0,0.05009111]
[1725318178190,0.13,59313.0,59312.0,0.05016873]
[1725318178997,0.13,59313.0,59312.0,0.050163]
[1725318180592,0.13,59313.0,59312.0,0.06675031]
[1725318180994,0.0004,59315.0,59312.0,1.0266]
[1725318181294,0.0004,59315.0,59314.0,0.067841]
[1725318181497,0.0004,59315.0,59314.0,0.19629642]
[1725318181696,0.0004,59315.0,59314.0,1.38569558]
[1725318181997,0.0004,59315.0,59314.0,1.38569153]
[1725318182195,0.1204,59315.0,59314.0,0.067841]
[1725318183295,0.2804,59315.0,59314.0,0.06734549]
[1725318183494,0.347839,59315.0,59314.0,0.05061715]
[1725318183700,0.347839,59315.0,59314.0,0.0004]
[1725318186093,1.52497523,59315.0,59314.0,0.0004]
[1725318186299,1.52497523,59315.0,59305.0,0.07084549]
[1725318186300,0.067447,59308.0,59305.0,0.05411715]
[1725318186496,0.3612,59306.0,59305.0,0.05021715]
[1725318186807,0.4812,59306.0,59304.0,0.05021715]
[1725318187004,0.1604,59305.0,59304.0,0.05021715]
[1725318187303,0.2904,59305.0,59301.0,0.05021715]
[1725318187607,0.0004,59302.0,59300.0,0.05021715]
[1725318187905,0.0004,59302.0,59299.0,0.05021715]
[1725318187906,0.1604,59301.0,59299.0,0.05021715]
[1725318188204,0.1604,59301.0,59297.0,0.36168]
[1725318188205,0.0004,59300.0,59297.0,0.3608]
[1725318188396,0.0004,59298.0,59297.0,0.3608]
[1725318188599,0.1304,59298.0,59297.0,0.3608]
[1725318188907,0.1304,59298.0,59296.0,0.067461]
[1725318188908,0.1304,59298.0,59292.0,0.11768215]
[1725318189097,0.1604,59293.0,59292.0,0.067465]
[1725318189297,0.2404,59293.0,59288.0,0.07142383]
[1725318189505,0.2404,59293.0,59288.0,0.07142483]
[1725318189506,0.0004,59289.0,59288.0,0.07142483]
[1725318189802,0.1604,59289.0,59288.0,0.06747]
[1725318190106,0.0004,59289.0,59288.0,0.06747]
[1725318192106,0.327869,59289.0,59283.0,0.409]
[1725318192305,0.1604,59284.0,59283.0,0.3608]
[1725318192601,0.2304,59284.0,59280.0,0.0489]
[1725318192806,0.0004,59281.0,59280.0,0.116379]
[1725318193701,0.0004,59281.0,59280.0,1.222459]
[1725318194211,9.6e-07,59288.0,59287.0,0.202413]
[1725318194402,9.6e-07,59288.0,59287.0,0.723613]
[1725318194603,9.6e-07,59288.0,59287.0,1.829613]
[1725318194905,9.6e-07,59288.0,59287.0,1.949613]
[1725318195103,9.6e-07,59288.0,59287.0,1.99983015]
[1725318195303,9.6e-07,59288.0,59287.0,1.949613]
[1725318195711,9.6e-07,59288.0,59287.0,1.995513]
[1725318196204,9.6e-07,59288.0,59287.0,2.06224963]
[1725318196600,0.0039,59298.0,59297.0,0.06746]
[1725318196904,0.3608,59306.0,59304.0,0.067452]
[1725318197104,0.4508,59306.0,59305.0,0.0004]
[1725318197699,0.36105296,59311.0,59310.0,0.067445]
[1725318198006,0.36105296,59311.0,59310.0,0.227845]
[1725318198406,0.37105296,59311.0,59310.0,0.227845]
[1725318199198,0.01025296,59311.0,59310.0,0.227845]
[1725318199401,0.01025296,59311.0,59310.0,1.333645]
[1725318199612,0.0039,59318.0,59317.0,0.067437]
[1725318199812,0.3608,59324.0,59323.0,0.06743]
[1725318200003,0.3808,59324.0,59323.0,0.06783]
[1725318200202,0.3808,59324.0,59323.0,0.06743]
[1725318200911,0.3608,59324.0,59323.0,0.06743]
[1725318201103,0.00025296,59329.0,59328.0,0.067425]
[1725318201410,0.00025296,59329.0,59328.0,1.094265]
[1725318201608,0.00025296,59329.0,59328.0,1.694265]
[1725318203811,0.00025296,59329.0,59328.0,0.428625]
[1725318204112,0.00025296,59329.0,59328.0,1.534265]
[1725318204317,9.6e-07,59329.0,59328.0,1.534265]
[1725318205705,9.6e-07,59329.0,59328.0,0.934265]
[1725318205906,9.6e-07,59329.0,59328.0,1.534265]
[1725318206104,9.6e-07,59329.0,59328.0,0.428625]
[1725318207202,9.6e-07,59329.0,59328.0,0.0004]
[1725318207405,0.66822496,59329.0,59328.0,0.0004]
[1725318212014,0.30742496,59329.0,59328.0,0.0004]
[1725318212317,0.66822496,59329.0,59328.0,0.0004]
[1725318215014,0.73564896,59329.0,59328.0,0.0004]
[1725318215210,1.84128896,59329.0,59328.0,0.0004]
[1725318215417,0.067434,59320.0,59319.0,0.0039]
[1725318215612,0.067434,59320.0,59318.0,0.00025296]
[1725318215613,0.067435,59319.0,59318.0,0.00025296]
[1725318215916,0.271735,59319.0,59318.0,0.00025296]
[1725318216320,0.33917,59319.0,59318.0,0.00025296]
[1725318217719,1.44493,59319.0,59318.0,0.00025296]
[1725318218524,1.44887341,59319.0,59318.0,0.00025296]
[1725318219734,0.78143841,59319.0,59318.0,0.00025296]
[1725318219928,1.38143841,59319.0,59318.0,0.00025296]
[1725318220420,0.78143841,59319.0,59318.0,0.00025296]
[1725318220618,0.271735,59319.0,59318.0,0.00025296]
[1725318220819,0.11,59319.0,59318.0,0.00025296]
[1725318221026,0.067443,59313.0,59310.0,0.0039]
[1725318221324,0.1604,59311.0,59308.0,0.36168]
[1725318221526,0.0004,59309.0,59308.0,0.067446]
[1725318222420,0.0504,59309.0,59303.0,0.36105296]
[1725318222622,0.0004,59304.0,59303.0,0.42850596]
[1725318222820,0.1104,59304.0,59303.0,0.42850596]
[1725318223927,0.177852,59304.0,59303.0,0.36105296]
[1725318228235,0.0004,59304.0,59303.0,0.42850596]
[1725318228436,0.0004,59304.0,59303.0,0.58850596]
[1725318229933,0.0004,59304.0,59303.0,1.69438596]
[1725318230133,0.0004,59304.0,59303.0,1.53438596]
[1725318230532,0.0004,59304.0,59303.0,0.93438596]
[1725318230732,0.0004,59304.0,59303.0,1.53438596]
[1725318231738,0.0004,59304.0,59303.0,1.69438596]
[1725318232338,0.0004,59304.0,59303.0,1.76183896]
[1725318236636,0.0404,59304.0,59303.0,0.65595896]
[1725318236937,0.0404,59304.0,59303.0,0.49595896]
[1725318237134,0.0404,59304.0,59303.0,0.42850596]
[1725318237539,0.0404,59304.0,59303.0,0.06770596]
[1725318240540,0.0404,59304.0,59303.0,0.00025296]
[1725318240541,0.107852,59304.0,59303.0,0.00025296]
[1725318240947,0.204152,59304.0,59303.0,0.00025296]
[1725318250759,0.564952,59304.0,59303.0,0.00025296]
[1725318251158,0.632404,59304.0,59303.0,0.00025296]
[1725318252056,1.138284,59304.0,59303.0,0.00025296]
[1725318252256,1.738284,59304.0,59303.0,0.00025296]
[1725318252653,0.067463,59294.0,59293.0,0.0039]
[1725318252863,0.067466,59292.0,59291.0,0.067467]
[1725318253051,0.067466,59292.0,59286.0,0.05022769]
[1725318253052,0.1104,59292.0,59286.0,0.05022769]
[1725318253258,0.0004,59287.0,59286.0,0.12162446]
[1725318253555,0.067467,59291.0,59288.0,0.06747]
[1725318253760,0.157467,59291.0,59288.0,0.06747]
[1725318254063,0.157467,59291.0,59290.0,0.0004]
[1725318256465,0.09,59291.0,59290.0,0.428668]
[1725318265462,0.00065296,59292.0,59290.0,1.6272]
[1725318265777,0.05065296,59292.0,59291.0,0.55246]
[1725318266161,0.05065296,59292.0,59291.0,1.20268769]
[1725318266569,0.05065296,59292.0,59291.0,1.15246]
[1725318266776,0.05065296,59292.0,59291.0,1.287394]
[1725318267069,0.00065296,59292.0,59291.0,1.287394]
[1725318267762,0.00065296,59292.0,59291.0,0.181434]
[1725318270867,0.00065296,59292.0,59291.0,0.23166169]
[1725318271266,0.00065296,59292.0,59291.0,0.59246169]
[1725318271467,0.00065296,59292.0,59291.0,0.23166169]
[1725318271671,0.00065296,59292.0,59291.0,0.59246169]
[1725318272567,0.00065296,59292.0,59291.0,0.59644296]
[1725318272783,0.00065296,59292.0,59291.0,0.54621527]
[1725318275565,0.00065296,59292.0,59291.0,0.59644296]
[1725318276573,0.00065296,59292.0,59291.0,0.54621527]
[1725318276775,0.00065296,59292.0,59291.0,0.18541527]
[1725318276976,0.00065296,59292.0,59291.0,0.54621527]
[1725318277666,0.00065296,59292.0,59291.0,0.43264827]
[1725318277971,0.19811896,59292.0,59291.0,0.43264827]
[1725318279675,0.19811896,59292.0,59291.0,0.07184827]
[1725318279982,0.19811896,59292.0,59291.0,0.43264827]
[1725318282277,0.13065296,59292.0,59291.0,0.43264827]
[1725318287483,0.13065296,59292.0,59291.0,0.50011527]
[1725318287680,9.6e-07,59294.0,59293.0,0.134928]
[1725318287869,9.6e-07,59294.0,59293.0,0.895328]
[1725318288075,9.6e-07,59294.0,59293.0,1.66248294]
[1725318288582,0.0039,59304.0,59303.0,0.067453]
[1725318288784,0.0468,59311.0,59303.0,0.5212]